bitfinex/quotes_ETHUSD_20230116
["timestamp","ask_amount","ask_price","bid_price","bid_amount"]
[1673879649708,0.04562401,1548.5,1548.4,24.24844725]
[1673879650492,1.01187644,1548.5,1548.4,24.24844725]
[1673879650966,0.04562401,1548.5,1548.4,24.24844725]
[1673879651962,1.01187644,1548.5,1548.4,24.24844725]
[1673879652879,2.45919029,1548.5,1548.4,24.24844725]
[1673879653491,1.01187644,1548.5,1548.4,24.24844725]
[1673879654976,1.01387644,1548.5,1548.4,24.24644725]
[1673879655186,1.01187644,1548.5,1548.4,24.24844725]
[1673879655519,0.04562401,1548.5,1548.4,24.24844725]
[1673879656357,1.01187644,1548.5,1548.4,24.24844725]
[1673879657269,0.04562401,1548.5,1548.4,24.24844725]
[1673879658115,1.01187644,1548.5,1548.4,15.60104568]
[1673879658322,2.45919029,1548.5,1548.4,3.004]
[1673879658540,1.97773809,1548.5,1548.4,3.0]
[1673879658782,1.97773809,1548.5,1548.3,0.066]
[1673879658783,5.41201047,1548.5,1548.3,0.066]
[1673879658990,1.45098514,1548.4,1548.2,15.9217]
[1673879659148,0.96732572,1548.3,1548.2,15.9217]
[1673879659675,2.41831086,1548.3,1548.2,15.9217]
[1673879660194,0.96732572,1548.3,1548.2,15.9217]
[1673879660825,0.96732572,1548.3,1548.2,16.1517]
[1673879661033,0.96732572,1548.3,1548.2,22.61081]
[1673879661302,2.41831086,1548.3,1548.2,22.61081]
[1673879661823,1.45098514,1548.3,1548.2,16.1517]
[1673879662194,2.41820932,1548.3,1548.2,16.1517]
[1673879663279,2.41811265,1548.3,1548.2,16.1517]
[1673879665268,0.96712751,1548.3,1548.2,22.61081]
[1673879666073,2.41811265,1548.3,1548.2,16.1517]
[1673879666284,2.41811265,1548.3,1548.2,9.46282]
[1673879666494,2.37683675,1548.3,1548.2,0.004]
[1673879666762,2.37683675,1548.3,1548.0,6.45971]
[1673879666763,4.78710913,1548.3,1548.0,6.46371]
[1673879667072,1.45063656,1548.1,1548.0,0.004]
[1673879667287,4.34438646,1548.1,1547.9,0.13267665]
[1673879667439,4.55435527,1548.0,1547.9,0.13267665]
[1673879667659,3.10351601,1548.0,1547.9,0.13267665]
[1673879667878,3.58841601,1548.0,1547.9,0.13267665]
[1673879668407,2.07956818,1548.0,1547.9,0.13267665]
[1673879668654,22.68245517,1548.0,1547.9,0.13267665]
[1673879668838,6.46046,1547.9,1547.6,0.06522944]
[1673879669027,3.06232362,1547.8,1547.6,0.06522944]
[1673879669501,0.96651105,1547.7,1547.6,0.06522944]
[1673879669817,1.44976657,1547.7,1547.6,0.06522944]
[1673879669974,1.93476657,1547.7,1547.6,0.06522944]
[1673879670184,1.44976657,1547.7,1547.6,0.06522944]
[1673879670424,2.95950714,1547.7,1547.6,0.06522944]
[1673879670640,9.42070714,1547.7,1547.6,0.06522944]
[1673879670914,2.0,1547.6,1547.5,0.06522944]
[1673879671155,2.96527394,1547.6,1547.5,0.06522944]
[1673879671457,6.00981175,1547.6,1547.5,0.06522944]
[1673879671685,14.56842175,1547.6,1547.5,0.06522944]
[1673879672078,12.56842175,1547.6,1547.5,0.06522944]
[1673879672334,11.60314781,1547.6,1547.5,0.06522944]
[1673879675879,12.56842175,1547.6,1547.5,0.06522944]
[1673879676227,3.25684218,1547.5,1547.4,0.05067413]
[1673879676438,26.40081896,1547.5,1547.4,0.05067413]
[1673879676605,26.49781896,1547.5,1547.4,0.05067413]
[1673879677968,18.03578896,1547.5,1547.4,0.05067413]
[1673879679590,1.83894218,1547.5,1547.4,0.05067413]
[1673879679798,11.60314781,1547.6,1547.4,0.05067413]
[1673879680167,2.0,1547.5,1547.4,0.05067413]
[1673879680377,24.65887678,1547.5,1547.4,0.05067413]
[1673879680696,24.75587678,1547.5,1547.4,0.05067413]
[1673879680937,28.38207924,1547.5,1547.4,0.05067413]
[1673879682745,28.86717924,1547.5,1547.4,0.05067413]
[1673879682907,34.51351842,1547.5,1547.4,0.05067413]
[1673879683785,34.51351842,1547.5,1547.4,0.04560672]
[1673879686522,31.86717924,1547.5,1547.4,0.04560672]
[1673879687328,26.86717924,1547.5,1547.4,0.04560672]
[1673879688222,17.13236246,1547.5,1547.4,0.04560672]
[1673879689064,4.20830246,1547.5,1547.4,0.04560672]
[1673879689275,1.024,1547.5,1547.4,0.04560672]
[1673879690170,1.024,1547.5,1547.4,6.50805672]
[1673879690385,1.024,1547.5,1547.4,0.04960672]
[1673879690591,1.024,1547.5,1547.4,0.04560672]
[1673879691740,1.024,1547.5,1547.4,6.50805672]
[1673879691985,1.024,1547.5,1547.4,6.51205672]
[1673879695896,4.39918678,1547.5,1547.4,0.04960672]
[1673879696053,10.86121678,1547.5,1547.4,0.04560672]
[1673879696266,10.95821678,1547.5,1547.4,0.04560672]
[1673879696841,4.49618678,1547.5,1547.4,0.04560672]
[1673879697157,4.39918678,1547.5,1547.4,0.04560672]
[1673879699000,4.39918678,1547.5,1547.4,0.04104605]
[1673879699369,7.39818678,1547.5,1547.4,0.04104605]
[1673879699522,7.49518678,1547.5,1547.4,0.04104605]
[1673879700674,8.45721875,1547.5,1547.4,0.04104605]
[1673879701986,21.38127875,1547.5,1547.4,0.04104605]
[1673879702369,14.91924875,1547.5,1547.4,0.04104605]
[1673879702580,15.40698335,1547.5,1547.4,0.04104605]
[1673879703056,8.94495335,1547.5,1547.4,0.04104605]
[1673879703222,1.060512,1547.5,1547.4,13.96094605]
[1673879703434,1.060512,1547.6,1547.4,19.43239605]
[1673879703783,15.559712,1547.7,1547.4,19.43239605]
[1673879704100,0.097,1547.7,1547.6,19.38483]
[1673879704414,0.963512,1547.8,1547.6,19.38883]
[1673879704995,0.963512,1547.8,1547.6,12.92722]
[1673879705205,17.51407857,1547.9,1547.6,12.92722]
[1673879706360,2.41327857,1547.8,1547.6,12.92722]
[1673879706815,2.41327857,1547.8,1547.6,14.92722]
[1673879706816,0.963512,1547.8,1547.6,14.92722]
[1673879707351,0.963512,1547.8,1547.6,16.41822]
[1673879707561,0.963512,1547.8,1547.7,16.1524]
[1673879707733,0.963512,1547.9,1547.7,19.413462]
[1673879707928,2.41327857,1548.0,1547.7,19.413462]
[1673879708140,0.963512,1547.9,1547.7,19.413462]
[1673879708932,0.963512,1547.9,1547.7,25.874662]
[1673879709244,2.51027857,1548.0,1547.8,2.5874662]
[1673879709455,2.41327857,1548.0,1547.9,12.92072]
[1673879709672,1.44976657,1548.0,1547.9,12.92472]
[1673879709985,2.41561115,1548.0,1547.9,12.92472]
[1673879710510,0.96584458,1548.0,1547.9,19.38508]
[1673879711084,0.96584458,1548.0,1547.9,24.58653462]
[1673879711085,0.002,1548.0,1547.9,24.58653462]
[1673879711415,0.96584458,1548.2,1547.9,26.62183462]
[1673879711665,2.55607313,1548.3,1548.0,4.732]
[1673879711879,2.55607313,1548.3,1548.1,19.85179]
[1673879712029,1.59022855,1548.3,1548.2,19.37733]
[1673879712241,1.59022855,1548.3,1548.2,12.92222]
[1673879712242,3.52110651,1548.3,1548.2,12.92222]
[1673879712506,1.58801993,1548.3,1548.2,12.92222]
[1673879712694,2.55304721,1548.3,1548.2,6.46311]
[1673879712908,1.58801993,1548.3,1548.2,6.46311]
[1673879713365,1.10465734,1548.3,1548.2,12.92222]
[1673879713713,1.10465734,1548.3,1548.2,6.46311]
[1673879713965,0.58031099,1548.1,1548.0,9.4597]
[1673879714173,0.58031099,1548.1,1548.0,22.38317]
[1673879715005,0.58031099,1548.1,1548.0,24.627687]
[1673879715216,0.58031099,1548.1,1548.0,24.857687]
[1673879720176,0.58031099,1548.1,1548.0,22.61317]
[1673879721911,7.03984099,1548.1,1548.0,0.004]
[1673879722134,0.67731099,1548.1,1547.8,3.004]
[1673879722468,0.67731099,1548.1,1548.0,19.37982]
[1673879722469,0.58031099,1548.1,1548.0,19.37982]
[1673879722677,0.58031099,1548.1,1548.0,22.38382]
[1673879723433,0.58031099,1548.1,1548.0,22.61382]
[1673879724148,0.58031099,1548.1,1548.0,3.004]
[1673879724340,0.58031099,1548.1,1548.0,3.0]
[1673879724759,0.58031099,1548.1,1547.9,0.066]
[1673879724991,5.61770718,1548.1,1547.8,0.004]
[1673879725325,4.95112665,1548.0,1547.6,0.004]
[1673879725495,7.95144,1547.9,1547.4,30.35504605]
[1673879725711,8.04844,1547.9,1547.4,0.04504605]
[1673879725925,10.9349,1547.9,1547.4,6.50348605]
[1673879726131,1.09349,1547.8,1547.4,6.50748605]
[1673879726531,15.60499,1547.8,1547.4,6.50748605]
[1673879726787,15.70199,1547.8,1547.4,6.50748605]
[1673879726984,15.70199,1547.8,1547.4,12.96993605]
[1673879727388,15.70199,1547.8,1547.5,0.23]
[1673879727389,14.6085,1547.8,1547.5,0.23]
[1673879727624,14.6085,1547.8,1547.6,6.46161]
[1673879727952,0.097,1547.8,1547.6,6.46561]
[1673879728177,9.4439,1547.9,1547.6,12.92722]
[1673879728397,0.097,1547.9,1547.7,0.23]
[1673879728552,16.05762665,1548.0,1547.7,6.69098]
[1673879728761,18.10844149,1548.0,1547.7,6.69498]
[1673879728974,1.54612665,1548.0,1547.7,13.15418]
[1673879729187,1.54612665,1548.0,1547.7,13.15618]
[1673879729188,0.4849,1548.0,1547.7,13.15618]
[1673879729388,15.94563764,1548.1,1547.7,13.15618]
[1673879729598,0.67731099,1548.1,1547.8,3.0]
[1673879729835,0.58031099,1548.1,1547.9,6.46036]
[1673879730064,0.58031099,1548.1,1547.9,6.46436]
[1673879730890,0.58031099,1548.1,1547.9,19.38508]
[1673879731650,0.58031099,1548.1,1548.0,3.0]
[1673879731882,0.58031099,1548.1,1548.0,22.60982]
[1673879732074,0.58031099,1548.1,1548.0,25.031102]
[1673879732229,0.58031099,1548.1,1548.0,25.63579321]
[1673879733506,0.58031099,1548.1,1548.0,28.90857999]
[1673879733863,0.58031099,1548.1,1548.0,25.63579321]
[1673879734237,0.58031099,1548.1,1548.0,27.13779321]
[1673879734822,9.9e-07,1548.1,1548.0,31.90957999]
[1673879734961,0.14046198,1548.3,1548.1,2.0]
[1673879735172,0.14046198,1548.3,1548.2,5.20478678]
[1673879735380,0.14046198,1548.3,1548.2,34.04522678]
[1673879741112,0.14246198,1548.3,1548.2,34.04322678]
[1673879741284,0.14046198,1548.3,1548.2,34.04522678]
[1673879743894,0.14046198,1548.3,1548.2,30.77244]
[1673879744116,0.14046198,1548.3,1548.2,29.07044]
[1673879744333,1.10468863,1548.3,1548.2,22.61133]
[1673879744582,1.10468863,1548.3,1548.2,22.38133]
[1673879745365,1.10468863,1548.3,1548.2,9.46311]
[1673879745615,1.58801993,1548.3,1548.2,6.46311]
[1673879746469,3.52104203,1548.3,1548.2,6.46311]
[1673879746693,1.58801993,1548.3,1548.2,12.92222]
[1673879747422,1.58801993,1548.3,1548.2,19.38133]
[1673879747574,0.14046198,1548.3,1548.2,21.971595]
[1673879747981,0.14046198,1548.3,1548.2,24.971595]
[1673879748268,0.14046198,1548.3,1548.2,25.201595]
[1673879748643,1.10615491,1548.3,1548.2,25.201595]
[1673879748849,1.10615491,1548.3,1548.2,16.15222]
[1673879749078,1.58801993,1548.3,1548.2,13.15222]
[1673879749462,1.58801993,1548.3,1548.2,19.61133]
[1673879749672,2.55387324,1548.3,1548.2,19.61133]
[1673879749937,1.10631529,1548.3,1548.2,19.61133]
[1673879750130,1.10631529,1548.3,1548.2,26.869781]
[1673879750453,0.14046198,1548.3,1548.2,26.869781]
[1673879750674,1.10631529,1548.3,1548.2,26.869781]
[1673879752352,0.14046198,1548.3,1548.2,26.869781]
[1673879752509,1.10631529,1548.3,1548.2,26.869781]
[1673879754456,1.10631529,1548.3,1548.2,24.10633]
[1673879756417,1.10631529,1548.3,1548.2,22.61133]
[1673879756630,2.55387324,1548.3,1548.2,22.61133]
[1673879757613,2.45387324,1548.3,1548.2,22.61133]
[1673879757924,1.48801993,1548.3,1548.2,16.15222]
[1673879758294,3.42104203,1548.3,1548.2,16.15222]
[1673879758750,1.97348408,1548.3,1548.2,16.15222]
[1673879758989,1.97348408,1548.3,1548.2,9.46311]
[1673879759768,3.42220716,1548.3,1548.2,9.46311]
[1673879760058,1.97348408,1548.3,1548.2,9.46311]
[1673879760345,1.48913125,1548.3,1548.2,9.46311]
[1673879760596,2.09820617,1548.3,1548.2,0.004]
[1673879760869,2.09820617,1548.3,1548.1,19.38179]
[1673879761043,0.96581352,1548.2,1548.1,19.38179]
[1673879761255,2.55194477,1548.3,1548.1,22.61179]
[1673879761475,0.96581352,1548.2,1548.1,19.61179]
[1673879761686,0.96581352,1548.2,1548.1,22.61179]
[1673879762213,0.96581352,1548.2,1548.1,16.15247]
[1673879763564,0.96781352,1548.2,1548.1,16.15047]
[1673879763774,0.96781352,1548.2,1548.1,16.15247]
[1673879763775,0.96581352,1548.2,1548.1,16.15247]
[1673879764656,0.96581352,1548.2,1548.1,9.69318]
[1673879764876,1.88763956,1548.2,1548.1,0.004]
[1673879765032,2.37181879,1548.2,1548.0,0.60469121]
[1673879765243,1.44885758,1548.1,1548.0,0.60469121]
[1673879767166,5.79215206,1548.1,1548.0,0.60469121]
[1673879767381,4.44029448,1548.1,1548.0,0.60469121]
[1673879767574,4.34329448,1548.1,1548.0,0.60469121]
[1673879768342,1.45011091,1548.1,1548.0,0.60469121]
[1673879768944,1.45011091,1548.1,1548.0,21.64359933]
[1673879768945,0.96668046,1548.1,1548.0,21.64359933]
[1673879769268,2.41730676,1548.1,1548.0,24.87759933]
[1673879769721,1.45011091,1548.1,1548.0,16.75857121]
[1673879769863,3.38313301,1548.1,1548.0,10.06863121]
[1673879770774,1.9330221,1548.1,1548.0,7.06863121]
[1673879771130,3.38392056,1548.1,1548.0,20.21851121]
[1673879771609,2.41819483,1548.1,1548.0,20.21851121]
[1673879771762,1.45089846,1548.1,1548.0,22.24656233]
[1673879771969,2.41818736,1548.1,1548.0,22.24656233]
[1673879772179,2.41818736,1548.1,1548.0,25.24656233]
[1673879773230,0.9672889,1548.1,1548.0,28.51934911]
[1673879773677,0.9672889,1548.1,1548.0,25.24656233]
[1673879774108,1.45089846,1548.1,1548.0,16.75857121]
[1673879774289,3.38392056,1548.1,1548.0,16.75857121]
[1673879775448,1.45089846,1548.1,1548.0,23.21851121]
[1673879775662,2.41823034,1548.1,1548.0,23.21851121]
[1673879775876,0.96733188,1548.1,1548.0,26.49129799]
[1673879776111,0.96733188,1548.1,1548.0,29.79264279]
[1673879776503,2.41823034,1548.2,1548.0,29.79264279]
[1673879776752,2.41823034,1548.2,1548.1,22.60859]
[1673879776753,1.45089846,1548.2,1548.1,22.60859]
[1673879776963,1.45089846,1548.2,1548.1,22.61259]
[1673879778016,2.41823082,1548.2,1548.1,22.61259]
[1673879778172,1.97348408,1548.3,1548.1,29.51671206]
[1673879778173,2.5556928,1548.3,1548.1,29.51671206]
[1673879778389,2.4586928,1548.3,1548.2,5.27278678]
[1673879778634,1.49136044,1548.3,1548.2,9.69311]
[1673879778797,1.97348408,1548.3,1548.2,9.69311]
[1673879779167,4.38375646,1548.3,1548.2,13.15222]
[1673879779338,4.38375646,1548.3,1548.2,6.69311]
[1673879780393,2.45073436,1548.3,1548.2,19.61133]
[1673879781058,2.45073436,1548.3,1548.2,13.15222]
[1673879781214,1.97553973,1548.3,1548.2,22.224594]
[1673879781425,1.97553973,1548.3,1548.2,25.224594]
[1673879781426,1.49172805,1548.3,1548.2,25.224594]
[1673879781668,4.39431488,1548.3,1548.2,25.224594]
[1673879781879,1.49172805,1548.3,1548.2,25.224594]
[1673879782311,1.49172805,1548.3,1548.2,22.60757821]
[1673879782482,1.49172805,1548.3,1548.2,16.14846821]
[1673879782697,2.99953973,1548.3,1548.2,0.00024821]
[1673879782904,2.99953973,1548.3,1548.1,6.45939821]
[1673879783118,2.99953973,1548.3,1548.1,6.45739821]
[1673879783753,0.29995397,1548.2,1548.1,0.00024821]
[1673879783961,0.29995397,1548.2,1548.0,7.06462121]
[1673879784188,1.45159586,1548.1,1548.0,7.06486942]
[1673879784420,1.45159586,1548.1,1548.0,23.21474942]
[1673879785205,1.45159586,1548.1,1548.0,10.29486942]
[1673879785732,1.45159586,1548.1,1548.0,10.06486942]
[1673879786148,1.45159586,1548.1,1548.0,7.06486942]
[1673879786485,8.05628545,1548.1,1548.0,0.60493942]
[1673879786698,8.15328545,1548.1,1548.0,0.60469121]
[1673879787840,1.69375545,1548.1,1548.0,0.60469121]
[1673879788052,1.59675545,1548.1,1548.0,0.60469121]
[1673879789104,8.05628545,1548.1,1548.0,0.60469121]
[1673879789313,14.61281545,1548.1,1548.0,0.60469121]
[1673879789523,24.34513223,1548.1,1548.0,0.60469121]
[1673879789767,17.88560223,1548.1,1548.0,0.60469121]
[1673879789982,1.69375545,1548.1,1548.0,0.60469121]
[1673879790173,1.59675545,1548.1,1548.0,0.60469121]
[1673879793257,8.05628545,1548.1,1548.0,0.60469121]
[1673879793432,8.15328545,1548.1,1548.0,0.60469121]
[1673879793625,14.61281545,1548.1,1548.0,0.60469121]
[1673879793939,8.15328545,1548.1,1548.0,0.60469121]
[1673879794589,1.69375545,1548.1,1548.0,0.60469121]
[1673879794804,1.59675545,1548.1,1548.0,0.60469121]
[1673879796237,1.45159586,1548.1,1548.0,0.60469121]
[1673879796432,1.45159586,1548.1,1548.0,7.06463121]
[1673879796725,1.45159586,1548.1,1548.0,7.06487942]
[1673879797093,1.45159586,1548.1,1548.0,0.60493942]
[1673879797363,1.45159586,1548.1,1548.0,0.60469121]
[1673879797673,2.24266745,1548.1,1548.0,0.60469121]
[1673879798262,15.16172745,1548.1,1548.0,0.60469121]
[1673879798517,24.99104423,1548.1,1548.0,0.60469121]
[1673879798716,25.47594423,1548.1,1548.0,0.60469121]
[1673879798911,24.99104423,1548.1,1548.0,0.60469121]
[1673879799259,24.98834119,1548.1,1548.0,0.60469121]
[1673879800868,11.69649126,1548.1,1548.0,0.60469121]
[1673879801121,5.23696126,1548.1,1548.0,0.33941141]
[1673879801328,6.86237104,1548.1,1548.0,0.33941141]
[1673879803860,13.32190104,1548.1,1548.0,0.33941141]
[1673879804425,19.78143104,1548.1,1548.0,0.33941141]
[1673879805015,29.51374782,1548.1,1548.0,0.33941141]
[1673879805219,31.73592775,1548.1,1548.0,0.33941141]
[1673879806300,32.22082775,1548.1,1548.0,0.33941141]
[1673879808189,37.22082775,1548.1,1548.0,0.33941141]
[1673879810174,51.73033707,1548.1,1548.0,0.33941141]
[1673879811569,40.86716693,1548.1,1548.0,0.33941141]
[1673879812700,40.22082775,1548.1,1548.0,0.33941141]
[1673879813144,47.01482775,1548.1,1548.0,0.33941141]
[1673879813302,47.66116693,1548.1,1548.0,0.33941141]
[1673879816410,47.01482775,1548.1,1548.0,0.33941141]
[1673879816925,48.95316693,1548.1,1548.0,0.33941141]
[1673879817287,40.86716693,1548.1,1548.0,0.33941141]
[1673879818080,54.35069693,1548.1,1547.8,2.37130081]
[1673879818295,13.27278678,1547.9,1547.8,2.37130081]
[1673879818600,42.75297527,1547.9,1547.8,2.37130081]
[1673879818815,42.8732451,1547.9,1547.8,2.37130081]
[1673879819333,47.8732451,1547.9,1547.8,2.37130081]
[1673879819551,47.8732451,1547.9,1547.8,2.25130081]
[1673879819764,50.05227035,1547.9,1547.8,2.25130081]
[1673879819966,47.15686104,1547.9,1547.8,2.25130081]
[1673879820120,52.88849939,1547.9,1547.8,2.25130081]
[1673879820342,59.68249939,1547.9,1547.8,1.32200082]
[1673879820667,59.68249939,1547.9,1547.4,0.10529426]
[1673879820668,2.0,1547.8,1547.4,0.04104605]
[1673879820876,1.44792356,1547.5,1547.4,0.04104605]
[1673879821091,0.96521369,1547.5,1547.4,0.04104605]
[1673879822349,7.42724369,1547.5,1547.4,0.04104605]
[1673879822739,7.52424369,1547.5,1547.4,0.04104605]
[1673879823846,1.06221369,1547.5,1547.4,1.03604605]
[1673879824031,9.09209708,1547.6,1547.4,1.79270589]
[1673879824228,0.96521369,1547.5,1547.4,1.79270589]
[1673879824438,9.09209708,1547.6,1547.4,1.79270589]
[1673879825073,2.63040708,1547.6,1547.4,1.79270589]
[1673879825287,2.53340708,1547.6,1547.4,1.79270589]
[1673879826338,1.08548352,1547.6,1547.4,1.79270589]
[1673879826587,2.53340708,1547.6,1547.4,1.79270589]
[1673879827092,0.96521369,1547.6,1547.5,2.19827059]
[1673879828029,0.96521369,1547.6,1547.5,8.66030059]
[1673879828238,0.96521369,1547.6,1547.5,8.6605488]
[1673879828587,0.96521369,1547.6,1547.5,1.1745188]
[1673879828743,2.41313725,1547.6,1547.5,0.17927059]
[1673879828992,2.41313725,1547.6,1547.4,10.4129841]
[1673879829159,2.41313725,1547.6,1547.4,3.19009426]
[1673879829480,0.96521369,1547.5,1547.4,0.04104605]
[1673879830529,0.96521369,1547.5,1547.4,6.50349605]
[1673879830892,2.41313725,1547.6,1547.4,6.50374426]
[1673879831318,2.41313725,1547.6,1547.4,12.96619426]
[1673879831507,0.96521369,1547.6,1547.5,7.75864943]
[1673879831718,1.54492356,1547.7,1547.5,16.22092764]
[1673879831719,2.41313725,1547.7,1547.5,16.22092764]
[1673879831893,0.96521369,1547.7,1547.5,22.68295764]
[1673879832102,0.96521369,1547.7,1547.5,20.68295764]
[1673879832786,0.96521369,1547.6,1547.5,1.29686764]
[1673879832955,0.96521369,1547.6,1547.4,0.33919426]
[1673879833172,0.96521369,1547.6,1547.4,0.04104605]
[1673879833404,2.41313725,1547.5,1547.4,0.04104605]
[1673879835401,1.44792356,1547.5,1547.4,0.04104605]
[1673879838510,3.37847671,1547.5,1547.4,0.04104605]
[1673879838934,3.37847671,1547.5,1547.4,6.50349605]
[1673879839265,3.37847671,1547.5,1547.4,0.04129426]
[1673879839620,1.44792356,1547.5,1547.4,0.04104605]
[1673879840024,3.37847671,1547.5,1547.4,0.04104605]
[1673879840567,1.93055315,1547.5,1547.4,0.04104605]
[1673879841373,3.38197407,1547.5,1547.4,0.04104605]
[1673879842549,1.93055315,1547.5,1547.4,0.04104605]
[1673879843397,2.41320593,1547.5,1547.4,0.04104605]
[1673879843560,11.07683219,1547.5,1547.4,0.04104605]
[1673879843769,17.22265626,1547.5,1547.4,0.03694145]
[1673879844000,23.68468626,1547.5,1547.4,0.03694145]
[1673879844242,29.85332016,1547.5,1547.4,0.03694145]
[1673879844413,27.0777597,1547.5,1547.4,0.03694145]
[1673879844621,27.5628597,1547.5,1547.4,0.03694145]
[1673879844833,30.46842552,1547.5,1547.4,0.03694145]
[1673879846849,35.46842552,1547.5,1547.4,0.03694145]
[1673879847502,35.46842552,1547.5,1547.4,0.02308437]
[1673879849990,32.5628597,1547.5,1547.4,0.02308437]
[1673879850256,35.94083723,1547.5,1547.4,0.02308437]
[1673879850643,36.58717641,1547.5,1547.4,0.02308437]
[1673879850849,45.31283723,1547.5,1547.4,0.02308437]
[1673879851055,48.95917641,1547.5,1547.4,0.00865759]
[1673879851295,21.38735,1547.4,1547.3,0.06784231]
[1673879851508,53.73097008,1547.4,1547.3,0.06784231]
[1673879851728,61.63329808,1547.4,1547.3,0.06784231]
[1673879852766,58.73097008,1547.4,1547.3,0.06784231]
[1673879853379,61.63209248,1547.4,1547.3,0.06784231]
[1673879853563,61.63191177,1547.4,1547.3,0.06784231]
[1673879853775,53.63191177,1547.4,1547.3,0.06784231]
[1673879853984,61.63191177,1547.4,1547.3,0.06784231]
[1673879855567,63.11891177,1547.4,1547.3,0.06784231]
[1673879855881,60.21797008,1547.4,1547.3,0.06784231]
[1673879856087,63.11891177,1547.4,1547.3,0.06784231]
[1673879856355,52.21797008,1547.4,1547.3,0.06784231]
[1673879856571,55.11891177,1547.4,1547.3,0.06784231]
[1673879856716,52.21797008,1547.4,1547.3,0.06784231]
[1673879856928,55.11891177,1547.4,1547.3,0.06784231]
[1673879857402,52.21797008,1547.4,1547.3,0.04242984]
[1673879857614,63.11891177,1547.4,1547.3,0.04242984]
[1673879857995,55.11891177,1547.4,1547.3,0.04242984]
[1673879858212,52.21797008,1547.4,1547.3,0.04242984]
[1673879858631,52.21797008,1547.4,1547.3,0.03156737]
[1673879859077,55.11891177,1547.4,1547.3,0.03156737]
[1673879859286,52.21797008,1547.4,1547.3,0.03156737]
[1673879859722,52.63338973,1547.4,1547.3,0.03156737]
[1673879860037,40.40414309,1547.4,1547.3,0.03156737]
[1673879860356,39.91904309,1547.4,1547.3,0.03156737]
[1673879860844,39.47972344,1547.4,1547.3,0.03156737]
[1673879861817,42.38066513,1547.4,1547.3,0.03156737]
[1673879862014,39.47972344,1547.4,1547.3,0.03156737]
[1673879862199,46.00202973,1547.4,1547.3,0.03156737]
[1673879862414,46.44120568,1547.4,1547.3,0.03156737]
[1673879863476,46.44119049,1547.4,1547.3,0.03156737]
[1673879863867,46.44119872,1547.4,1547.3,0.03156737]
[1673879864127,44.02592973,1547.4,1547.3,0.03156737]
[1673879864769,46.92687142,1547.4,1547.3,0.03156737]
[1673879864979,44.02592973,1547.4,1547.3,0.03156737]
[1673879866159,44.51102973,1547.4,1547.3,0.03156737]
[1673879866498,44.02592973,1547.4,1547.3,0.03156737]
[1673879866804,45.52792973,1547.4,1547.3,0.03156737]
[1673879867118,2.0,1547.3,1547.2,0.04648614]
[1673879867282,33.17959778,1547.3,1547.2,0.04648614]
[1673879867490,33.27659778,1547.3,1547.2,0.02912035]
[1673879867745,41.27659778,1547.3,1547.2,0.02912035]
[1673879867957,41.76169778,1547.3,1547.2,0.02912035]
[1673879868153,41.27659778,1547.3,1547.2,0.02912035]
[1673879868534,46.27659778,1547.3,1547.2,0.02912035]
[1673879869008,43.37805261,1547.3,1547.2,0.02912035]
[1673879869323,46.27659778,1547.3,1547.2,0.02912035]
[1673879871854,43.37805261,1547.3,1547.2,0.02912035]
[1673879872247,46.27659778,1547.3,1547.2,0.02912035]
[1673879873707,46.27659778,1547.3,1547.2,0.01316433]
[1673879874167,53.07059778,1547.3,1547.2,0.01316433]
[1673879874643,48.07059778,1547.3,1547.2,0.01316433]
[1673879874853,45.17205261,1547.3,1547.2,0.01316433]
[1673879875065,50.17205261,1547.3,1547.2,0.01316433]
[1673879875544,53.07214333,1547.3,1547.2,0.01316433]
[1673879875693,50.17205261,1547.3,1547.2,0.01316433]
[1673879875906,53.07214472,1547.3,1547.2,0.01316433]
[1673879876698,50.17205261,1547.3,1547.2,0.01316433]
[1673879877104,50.17205261,1547.3,1547.2,0.00495169]
[1673879877268,53.81839179,1547.3,1547.2,0.00495169]
[1673879877478,2.0,1547.2,1547.1,0.0421397]
[1673879877739,33.4765097,1547.2,1547.1,0.0421397]
[1673879877954,33.5735097,1547.2,1547.1,0.0421397]
[1673879878324,43.4122097,1547.2,1547.1,0.0421397]
[1673879879482,43.4122097,1547.2,1547.1,0.0021397]
[1673879880533,41.9202097,1547.2,1547.1,0.0021397]
[1673879881605,44.8207011,1547.2,1547.1,0.0021397]
[1673879882797,39.8207011,1547.2,1547.1,0.0021397]
[1673879883592,44.8207011,1547.2,1547.1,0.0021397]
[1673879884257,42.8207011,1547.2,1547.1,0.0021397]
[1673879884480,37.71861344,1547.2,1547.1,0.0021397]
[1673879884798,40.13848687,1547.2,1547.1,0.0021397]
[1673879884951,35.13848687,1547.2,1547.1,0.0021397]
[1673879885156,32.71861344,1547.2,1547.1,0.0021397]
[1673879885404,35.13889403,1547.2,1547.1,0.0021397]
[1673879886247,18.83691403,1547.2,1547.1,0.0021397]
[1673879886424,18.71662737,1547.2,1547.1,0.0021397]
[1673879887424,14.9601371,1547.2,1547.1,0.9971397]
[1673879887950,19.48684,1547.2,1547.1,0.0021397]
[1673879888104,25.65667559,1547.2,1547.1,0.0021397]
[1673879888802,25.65667559,1547.2,1547.1,0.0001397]
[1673879889839,28.55716699,1547.2,1547.1,0.0001397]
[1673879890362,28.67745365,1547.2,1547.1,0.0001397]
[1673879890589,28.55716699,1547.2,1547.1,0.0001397]
[1673879893603,25.66011818,1547.2,1547.1,0.0001397]
[1673879894379,22.75962678,1547.2,1547.1,0.0001397]
[1673879897569,25.66011818,1547.2,1547.1,0.0001397]
[1673879899299,25.66011818,1547.2,1547.0,0.06633113]
[1673879899300,2.0,1547.1,1547.0,0.06633113]
[1673879899515,30.04617163,1547.1,1547.0,0.06633113]
[1673879899687,30.14317163,1547.1,1547.0,0.06633113]
[1673879899890,30.26345829,1547.1,1547.0,0.06633113]
[1673879900104,30.14317163,1547.1,1547.0,0.06633113]
[1673879900339,30.26345829,1547.1,1547.0,0.06633113]
[1673879900891,53.91325829,1547.1,1547.0,0.06633113]
[1673879901240,51.00693612,1547.1,1547.0,0.06633113]
[1673879902640,53.91317936,1547.1,1547.0,0.06633113]
[1673879903690,51.00693612,1547.1,1547.0,0.05969802]
[1673879904560,53.91362996,1547.1,1547.0,0.05969802]
[1673879904777,51.00693612,1547.1,1547.0,0.05969802]
[1673879905150,53.91342401,1547.1,1547.0,0.05969802]
[1673879905362,54.39862401,1547.1,1547.0,0.05969802]
[1673879905761,59.39862401,1547.1,1547.0,0.05969802]
[1673879906520,56.49213612,1547.1,1547.0,0.05969802]
[1673879906864,56.00693612,1547.1,1547.0,0.05969802]
[1673879907078,58.91342357,1547.1,1547.0,0.05969802]
[1673879908813,62.2914011,1547.1,1547.0,0.05969802]
[1673879909024,58.91342357,1547.1,1547.0,0.05969802]
[1673879909272,58.91342357,1547.1,1547.0,0.03747538]
[1673879910278,59.81927503,1547.1,1547.0,0.03747538]